bitfinex/quotes_ETHUSD_20260217
["timestamp","ask_amount","ask_price","bid_price","bid_amount"]
[1771307501189,5.95690616,1976.5,1976.1,0.001]
[1771307501400,5.95690616,1976.3,1975.6,0.45171786]
[1771307501569,0.752,1976.2,1975.7,0.45171786]
[1771307501775,1.74912893,1976.9,1976.1,0.45171786]
[1771307501981,1.74899876,1977.1,1976.1,0.45171786]
[1771307502275,0.751,1976.9,1976.1,0.45171786]
[1771307502473,0.48447675,1976.8,1976.0,0.45171786]
[1771307502690,0.48447675,1976.8,1975.9,1.26522261]
[1771307502900,0.48447675,1976.4,1975.6,1.7171562]
[1771307503106,0.48447675,1976.6,1975.7,0.45171786]
[1771307503270,0.751,1976.5,1975.7,0.45171786]
[1771307503597,1.23547675,1976.5,1976.2,0.001]
[1771307503798,0.48447675,1976.4,1976.2,0.001]
[1771307504284,0.751,1976.5,1976.2,0.001]
[1771307504807,1.74649808,1976.6,1976.2,0.001]
[1771307504972,1.23267002,1976.5,1976.2,0.001]
[1771307505374,1.26482806,1976.6,1976.2,0.001]
[1771307505699,0.752,1976.5,1976.2,0.001]
[1771307506891,2.01690508,1976.5,1976.2,0.001]
[1771307507089,0.48167002,1976.4,1976.2,0.001]
[1771307507491,0.48167002,1976.4,1976.0,0.001]
[1771307507692,0.48167002,1976.2,1975.5,0.001]
[1771307508201,0.752,1976.1,1975.5,0.001]
[1771307508994,2.017159,1976.1,1975.5,0.001]
[1771307509406,0.752,1976.1,1975.5,0.001]
[1771307509603,0.752,1976.1,1975.5,0.46763961]
[1771307510920,0.45997292,1976.6,1975.7,0.46663961]
[1771307511124,0.752,1976.5,1975.7,0.46663961]
[1771307511287,1.26480263,1976.6,1975.7,0.46663961]
[1771307511489,1.72469436,1976.8,1975.7,0.46663961]
[1771307511689,0.752,1976.7,1975.8,0.46663961]
[1771307513202,0.752,1976.7,1975.9,1.26524621]
[1771307513400,0.45997292,1976.8,1976.0,0.46663961]
[1771307513720,0.751,1976.7,1976.0,0.46663961]
[1771307515007,1.72464723,1976.8,1976.0,0.46663961]
[1771307515201,2.47564723,1976.8,1976.1,1.73175777]
[1771307515909,1.26465057,1976.9,1976.1,1.26511816]
[1771307516112,0.751,1976.8,1976.2,0.46663961]
[1771307518223,0.751,1976.8,1976.3,1.73162974]
[1771307519637,2.01567134,1976.8,1976.2,1.26501556]
[1771307520502,2.01567134,1976.8,1976.2,0.46663961]
[1771307520804,2.01564392,1976.9,1976.2,0.46663961]
[1771307521826,0.751,1977.0,1976.2,0.46663961]
[1771307522626,2.01557337,1977.0,1976.4,0.46663961]
[1771307524129,1.26457337,1977.0,1976.4,0.46663961]
[1771307524336,2.01557337,1977.0,1976.4,0.46663961]
[1771307525231,5.51790321,1977.1,1976.4,0.46663961]
[1771307525232,1.7245085,1977.1,1976.4,1.73154234]
[1771307525440,0.751,1977.0,1976.4,1.73154234]
[1771307526332,0.751,1977.0,1976.5,0.46663961]
[1771307527038,1.21097292,1977.1,1976.5,0.46663961]
[1771307527332,0.751,1977.2,1976.7,0.46663961]
[1771307527521,1.72546081,1977.3,1976.7,0.46663961]
[1771307527701,0.751,1977.2,1976.7,0.46663961]
[1771307529139,0.0011,1976.9,1976.7,0.46663961]
[1771307529443,0.0011,1976.9,1976.7,1.73135496]
[1771307529810,0.0011,1976.9,1976.8,0.46663961]
[1771307531232,0.0011,1976.9,1976.7,1.26471535]
[1771307531413,0.0011,1976.9,1976.7,0.46663961]
[1771307532309,0.0011,1977.0,1976.7,0.46663961]
[1771307532936,0.0011,1977.2,1976.8,0.46663961]
[1771307533324,0.0011,1977.2,1976.9,1.2646062]
[1771307533635,0.0011,1977.2,1976.9,1.73124581]
[1771307534734,0.0011,1977.2,1976.9,1.2646062]
[1771307534940,0.0011,1977.2,1977.0,0.49546697]
[1771307536326,0.0011,1977.2,1977.0,1.76000549]
[1771307538549,0.0011,1977.4,1977.0,1.76000549]
[1771307538850,0.0011,1977.6,1977.2,0.49546697]
[1771307540318,0.0011,1977.6,1977.2,1.7598273]
[1771307542635,0.0011,1977.5,1977.2,1.7598273]
[1771307547820,0.0011,1977.5,1977.1,5.05787419]
[1771307547821,0.47201079,1977.5,1977.0,1.26454223]
[1771307548750,0.47201079,1977.5,1977.1,0.49546697]
[1771307548751,0.0011,1977.5,1977.1,0.49546697]
[1771307549064,0.0011,1977.5,1977.2,0.49546697]
[1771307549924,0.0011,1977.5,1977.3,1.26435037]
[1771307550336,0.0011,1977.5,1977.2,1.75983288]
[1771307550949,0.0011,1977.8,1977.4,0.49546697]
[1771307551763,0.0011,1978.0,1977.5,5.9750785]
[1771307552070,0.0011,1978.0,1977.6,1.26415857]
[1771307555356,0.47201079,1978.0,1977.6,1.26415857]
[1771307555551,0.0011,1978.0,1977.6,1.26415857]
[1771307555726,0.0011,1978.0,1977.6,1.75962554]
[1771307556560,0.0011,1977.8,1977.6,1.75962554]
[1771307557735,0.0011,1977.8,1977.6,1.26415857]
[1771307557936,0.0011,1977.8,1977.5,1.75965246]
[1771307558138,0.0011,1978.0,1977.6,0.49546697]
[1771307558459,0.0011,1978.0,1977.7,1.26409465]
[1771307559260,0.47201079,1978.2,1977.7,1.26409465]
[1771307559261,0.0011,1978.2,1977.7,7.23917315]
[1771307559946,0.0011,1978.2,1977.7,1.75956162]
[1771307560633,0.0011,1978.2,1977.6,5.05645595]
[1771307560933,0.0011,1978.2,1977.6,5.55192292]
[1771307562028,0.47201079,1978.2,1977.6,5.55192292]
[1771307562464,1.73431059,1978.8,1978.1,5.9750785]
[1771307562664,0.47091079,1978.5,1977.6,1.26415857]
[1771307562834,0.47091079,1978.3,1977.3,1.26531034]
[1771307563032,0.47091079,1978.3,1977.3,2.06931034]
[1771307565165,0.49321646,1978.1,1977.3,2.06931034]
[1771307566363,0.49321646,1978.1,1977.3,0.805]
[1771307567368,1.26390293,1978.0,1977.3,0.001]
[1771307567550,0.49321646,1977.9,1977.3,0.001]
[1771307567863,1.23721646,1977.9,1977.3,0.001]
[1771307568161,0.49321646,1977.8,1977.4,0.001]
[1771307569841,6.74461446,1978.0,1977.4,0.001]
[1771307569842,0.46235239,1977.7,1977.4,0.001]
[1771307570045,0.46235239,1977.9,1977.4,0.001]
[1771307570250,1.20635239,1977.9,1977.4,0.001]
[1771307570575,0.46235239,1977.9,1977.4,0.001]
[1771307570735,0.0011,1978.0,1977.4,0.49650317]
[1771307570936,0.46345239,1978.0,1977.4,0.49650317]
[1771307571168,0.46235239,1977.9,1977.4,0.001]
[1771307572070,1.72633392,1977.9,1977.4,0.001]
[1771307572268,0.46235239,1977.9,1977.4,0.001]
[1771307572442,0.46235239,1977.8,1977.4,0.001]
[1771307575068,0.46235239,1977.7,1977.4,0.001]
[1771307576945,1.72645007,1977.7,1977.4,0.001]
[1771307577444,0.46235239,1977.6,1977.4,0.001]
[1771307579445,0.747,1977.7,1977.4,0.001]
[1771307579762,1.20935239,1977.7,1977.4,0.001]
[1771307580858,1.20935239,1977.7,1977.5,0.001]
[1771307582290,0.748,1977.7,1977.5,0.001]
[1771307582656,0.46235239,1977.9,1977.5,0.001]
[1771307582884,0.749,1977.8,1977.5,0.001]
[1771307583458,0.0011,1978.0,1977.5,0.001]
[1771307583658,0.7501,1978.0,1977.5,0.49650317]
[1771307585467,0.7501,1978.0,1977.6,1.26415857]
[1771307585696,1.26500937,1978.0,1977.5,0.001]
[1771307585865,0.7501,1978.0,1977.5,1.26522169]
[1771307586385,2.47636043,1978.0,1977.5,0.001]
[1771307586692,0.7501,1978.0,1977.5,1.7607235]
[1771307587262,0.7501,1978.0,1977.5,0.001]
[1771307587463,2.47636722,1978.0,1977.5,0.001]
[1771307587779,1.21345239,1978.0,1977.5,0.001]
[1771307588088,0.7511,1978.0,1977.5,0.001]
[1771307588887,2.47736656,1978.0,1977.5,0.001]
[1771307592396,1.21345239,1978.0,1977.5,0.001]
[1771307592576,0.46235239,1977.9,1977.5,0.001]
[1771307593886,0.46235239,1977.7,1977.3,0.001]
[1771307594091,1.21335239,1977.6,1977.3,0.001]
[1771307594282,2.47751096,1977.6,1977.5,0.001]
[1771307594483,2.47751096,1977.6,1977.3,0.001]
[1771307594679,0.751,1977.6,1977.3,0.001]
[1771307595280,1.75466599,1977.7,1977.3,0.001]
[1771307595468,0.752,1977.6,1977.3,0.001]
[1771307596694,2.01618205,1977.6,1977.3,0.001]
[1771307597365,2.50670525,1977.6,1977.3,0.001]
[1771307597902,0.9121,1978.0,1977.3,0.47367915]
[1771307597903,1.26400098,1977.9,1977.3,0.47367915]
[1771307598104,0.753,1977.7,1977.3,0.47367915]
[1771307599171,1.75452418,1977.9,1977.3,0.47367915]
[1771307599478,0.753,1977.8,1977.3,0.47367915]
[1771307600500,0.753,1977.8,1977.3,0.001]
[1771307600501,0.4905232,1977.7,1977.3,0.001]
[1771307601271,1.75468177,1977.6,1977.3,0.001]
[1771307602483,0.4905232,1977.6,1977.3,0.001]
[1771307602768,1.75455501,1977.8,1977.3,0.001]
[1771307602994,0.754,1977.6,1977.3,0.001]
[1771307603895,0.754,1977.8,1977.3,0.47367915]
[1771307605188,1.2445232,1977.8,1977.3,0.47367915]
[1771307605391,0.4905232,1977.6,1977.3,0.001]
[1771307606183,0.4905232,1977.6,1977.4,0.001]
[1771307607793,1.26519465,1977.7,1977.4,0.001]
[1771307608098,1.75571785,1977.7,1977.4,0.001]
[1771307610395,0.4916232,1977.7,1977.4,0.001]
[1771307610710,0.758,1977.6,1977.4,0.47367915]
[1771307612005,0.0011,1977.8,1977.5,0.47267915]
[1771307612578,0.0011,1977.8,1977.6,0.47267915]
[1771307615205,0.0011,1977.8,1977.5,1.26418939]
[1771307615580,0.0011,1977.8,1977.5,1.73686854]
[1771307616007,0.0011,1977.8,1977.5,1.26418939]
[1771307616895,0.0011,1977.8,1977.4,1.7379289]
[1771307617205,0.0011,1977.8,1977.5,0.47267915]
[1771307617906,0.0011,1977.8,1977.4,1.7379289]
[1771307618421,0.0011,1977.8,1977.5,0.47267915]
[1771307619508,0.0011,1977.7,1977.4,0.001]
[1771307620210,0.0011,1977.7,1977.4,1.73796418]
[1771307620708,0.0011,1977.7,1977.4,0.001]
[1771307624090,0.0011,1977.7,1977.4,0.478922]
[1771307626018,0.0011,1977.7,1977.4,1.74316059]
[1771307628119,0.0011,1977.7,1977.4,0.001]
[1771307628494,0.0011,1977.7,1977.4,1.26528609]
[1771307628701,0.0011,1977.7,1977.4,1.74320809]
[1771307629633,0.0011,1977.7,1977.4,0.478922]
[1771307629805,0.0011,1977.7,1977.4,1.74320471]
[1771307631223,0.0011,1977.7,1977.5,0.001]
[1771307632328,0.0011,1977.7,1977.5,0.4907706]
[1771307632934,0.0011,1978.0,1977.5,0.001]
[1771307633630,0.0011,1978.0,1977.5,0.4907706]
[1771307633805,1.74971942,1978.0,1977.5,0.001]
[1771307634006,0.48581035,1978.0,1977.5,0.001]
[1771307635614,0.0011,1978.0,1977.5,0.4907706]
[1771307636841,0.0011,1978.3,1977.5,0.4907706]
[1771307637006,6.43,1978.6,1977.5,0.4907706]
[1771307637007,0.48471035,1978.7,1978.0,5.47677291]
[1771307637209,5.05321397,1979.0,1978.1,0.4897706]
[1771307637519,0.48471035,1978.9,1978.1,0.4897706]
[1771307639239,1.74794369,1979.1,1978.3,0.4897706]
[1771307639440,2.50294369,1979.1,1978.3,0.4897706]
[1771307639623,2.01823334,1979.1,1978.3,0.4897706]
[1771307639935,0.48471035,1979.0,1978.3,0.4897706]
[1771307640308,0.48471035,1978.9,1978.1,1.26379548]
[1771307640514,0.48471035,1978.9,1977.5,5.9686343]
[1771307640515,0.48471035,1978.5,1977.5,2.66592917]
[1771307640719,0.48471035,1978.5,1977.6,5.54626322]
[1771307641312,1.26364739,1978.4,1977.6,5.54626322]
[1771307641663,0.48471035,1978.3,1977.6,0.4897706]
[1771307641819,0.48471035,1978.3,1977.5,1.713]
[1771307641820,0.48471035,1978.3,1977.5,2.97717709]
[1771307643224,0.48471035,1978.3,1977.5,1.713]
[1771307643644,0.48471035,1978.1,1977.5,1.713]
[1771307644018,0.48471035,1978.1,1977.5,2.97721615]
[1771307644352,0.48471035,1978.1,1977.5,1.713]
[1771307644552,0.48471035,1977.9,1977.5,0.001]
[1771307644871,0.48471035,1978.1,1977.5,0.001]
[1771307645746,0.48471035,1978.0,1977.5,0.001]
[1771307649957,1.7486149,1978.0,1977.5,0.001]
[1771307651250,0.48471035,1978.0,1977.5,0.001]
[1771307652060,1.74862023,1978.0,1977.5,0.001]
[1771307655461,1.74862023,1978.0,1977.6,0.001]
[1771307657767,0.46971511,1977.9,1977.6,0.001]
[1771307657978,0.46971511,1977.7,1977.4,0.001]
[1771307658265,1.73387368,1977.6,1977.4,0.001]
[1771307659557,1.73387368,1977.6,1977.2,0.001]
[1771307659558,0.46971511,1977.5,1977.2,0.001]
[1771307660547,1.73400154,1977.4,1977.2,0.001]
[1771307660740,2.49500154,1977.4,1977.2,0.001]
[1771307661365,0.46971511,1977.3,1977.2,0.001]
[1771307662060,0.762,1977.5,1977.2,0.001]
[1771307663166,1.26403074,1977.8,1977.2,0.001]
[1771307663348,0.763,1977.7,1977.2,0.001]
[1771307664768,0.46971511,1977.6,1977.2,0.001]
[1771307665972,1.73393666,1977.6,1977.2,0.001]
[1771307667661,1.73393666,1977.6,1977.3,0.001]
[1771307667969,1.73503666,1977.6,1977.3,0.001]
[1771307669366,0.7671,1977.6,1977.3,0.001]
[1771307669749,2.50097467,1977.6,1977.3,0.001]
[1771307670152,0.46971511,1977.5,1977.3,0.001]
[1771307670467,1.73398405,1977.5,1977.3,0.001]
[1771307671675,0.7671,1977.6,1977.3,0.001]
[1771307671859,0.0011,1977.6,1977.3,0.47228476]
[1771307673850,0.0011,1977.6,1977.3,0.001]
[1771307674247,0.47081511,1977.6,1977.3,0.001]
[1771307675167,1.73499164,1977.6,1977.3,0.001]
[1771307677475,0.0011,1977.6,1977.3,0.001]
[1771307679979,0.0011,1977.6,1977.4,0.001]
[1771307680189,0.47081511,1977.6,1977.3,0.001]
[1771307680478,0.0011,1977.5,1977.3,0.001]
[1771307684961,1.2653225,1977.5,1977.3,0.001]
[1771307687700,1.2653225,1977.5,1977.1,0.001]
[1771307689156,1.76402915,1977.5,1977.1,0.001]
[1771307692079,1.2653225,1977.5,1977.1,0.001]
[1771307692688,1.72855776,1977.5,1977.1,0.001]
[1771307693064,1.72855776,1977.5,1977.2,0.001]
[1771307700331,0.46323526,1977.4,1977.2,0.001]
[1771307700619,0.46323526,1977.2,1976.9,0.001]
[1771307700904,0.783,1977.2,1976.9,0.001]
[1771307701807,1.2653225,1977.5,1977.0,0.48538714]
[1771307701808,0.783,1977.3,1977.0,0.48538714]
[1771307702095,2.04728926,1977.4,1977.0,0.48538714]
[1771307702271,0.783,1977.4,1977.0,0.48538714]
[1771307704715,0.783,1977.4,1977.0,0.48638714]
[1771307704909,2.04838886,1977.4,1977.0,0.48638714]
[1771307705798,2.04838886,1977.4,1977.0,0.001]
[1771307706104,0.7841,1977.4,1977.0,0.001]
[1771307706480,2.04838691,1977.4,1977.0,0.001]
[1771307706880,0.7841,1977.4,1977.0,0.001]
[1771307707411,2.83138975,1977.4,1977.0,0.001]
[1771307707892,0.7841,1977.4,1977.0,0.48638714]
[1771307711314,0.7841,1977.4,1977.0,1.75092366]
[1771307711811,0.7841,1977.4,1977.0,0.48638714]
[1771307714085,0.7841,1977.4,1977.1,0.48538714]
[1771307714979,0.0011,1977.4,1977.1,0.48538714]
[1771307715210,0.0011,1977.5,1977.1,0.45462927]
[1771307716217,0.7841,1977.5,1977.1,1.26442049]
[1771307716784,0.7841,1977.5,1977.1,1.71904976]
[1771307716983,0.7841,1977.5,1977.1,1.72004976]
[1771307717229,0.0011,1977.3,1977.1,1.72004976]
[1771307718417,0.0011,1977.3,1977.1,0.001]
[1771307719785,0.783,1977.2,1977.1,0.001]
[1771307721492,2.04741432,1977.2,1977.1,0.001]
[1771307721732,1.73589972,1977.2,1976.9,0.001]
[1771307721937,1.73589972,1977.2,1976.3,2.63058375]
[1771307721938,0.4714854,1977.0,1976.3,2.63058375]
[1771307722099,0.4714854,1977.0,1976.4,0.45462927]
[1771307722430,0.779,1976.9,1976.4,0.45462927]
[1771307722585,0.779,1976.9,1976.4,1.71951457]
[1771307722917,1.73602802,1977.0,1976.4,1.71951457]
[1771307722918,0.779,1976.8,1976.4,1.71951457]
[1771307723103,0.779,1976.9,1976.4,0.45462927]
[1771307723600,0.779,1976.8,1976.4,0.45462927]
[1771307723799,1.2504854,1976.9,1976.3,2.17594859]
[1771307724032,1.2504854,1976.9,1976.3,2.63057786]
[1771307724200,0.779,1976.8,1976.3,1.36562927]
[1771307724402,0.4714854,1976.7,1976.1,0.792]
[1771307724619,0.779,1976.6,1976.2,0.45462927]
[1771307724819,0.779,1976.5,1976.2,0.45462927]
[1771307725006,0.779,1976.5,1976.1,2.05708607]
[1771307725007,2.5152253,1976.7,1976.1,0.792]
[1771307725202,0.779,1976.6,1976.1,2.05710541]
[1771307725386,0.779,1976.6,1976.2,0.45462927]
[1771307725594,0.779,1976.5,1976.2,0.45462927]
[1771307725791,10.53773595,1977.0,1976.2,0.45462927]
[1771307725792,0.779,1976.8,1976.2,0.45462927]
[1771307725988,1.73603191,1977.0,1976.2,0.45462927]
[1771307725989,0.779,1976.9,1976.2,0.45462927]
[1771307726507,0.779,1976.8,1976.2,0.45462927]
[1771307726704,0.779,1976.9,1976.3,0.45462927]
[1771307727718,0.779,1976.8,1976.2,1.2649913]
[1771307727902,1.2504854,1976.8,1976.2,1.2649913]
[1771307728301,1.2504854,1976.8,1976.2,1.71962057]
[1771307730304,0.779,1976.8,1976.2,1.71962057]
[1771307731025,0.779,1976.8,1976.3,0.45462927]
[1771307731606,0.779,1976.8,1976.4,0.001]
[1771307731932,1.7361391,1976.9,1976.4,0.001]
[1771307732135,0.779,1976.8,1976.4,0.001]
[1771307732634,0.779,1976.8,1976.4,0.45562927]
[1771307733952,0.779,1976.8,1976.5,1.26486213]
[1771307734451,0.779,1976.8,1976.4,1.72050574]
[1771307734618,0.779,1976.7,1976.4,0.001]
[1771307734947,1.2504854,1976.9,1976.4,0.001]
[1771307735137,0.4714854,1976.9,1976.4,0.001]
[1771307735932,1.73611493,1976.9,1976.4,0.001]
[1771307736735,0.4714854,1976.9,1976.4,0.001]
[1771307738436,1.73609763,1976.9,1976.4,0.001]
[1771307738941,0.4714854,1976.9,1976.4,0.001]
[1771307739238,1.73607764,1977.0,1976.4,0.45562927]
[1771307739406,0.779,1976.9,1976.4,0.45562927]
[1771307740533,0.779,1976.9,1976.6,0.45462927]
[1771307740714,0.0011,1977.1,1976.6,0.45462927]
[1771307740909,0.779,1977.0,1976.6,0.45462927]
[1771307742965,1.2504854,1976.9,1976.5,0.793]
[1771307743260,1.2504854,1976.9,1976.4,0.001]
[1771307743413,0.779,1976.8,1976.4,1.26592072]
[1771307743759,0.779,1976.9,1976.4,1.72054999]
[1771307744059,0.779,1976.9,1976.5,0.001]
[1771307744218,0.7801,1976.9,1976.5,0.001]
[1771307745532,0.779,1976.8,1976.5,0.001]
[1771307747555,0.0011,1976.9,1976.5,0.001]
[1771307747755,0.779,1976.8,1976.5,0.001]
[1771307747954,0.779,1976.8,1976.5,0.48896809]
[1771307748455,0.779,1976.8,1976.5,0.001]
[1771307748954,0.0011,1976.9,1976.5,1.26586213]
[1771307749146,0.779,1976.8,1976.5,1.26586213]
[1771307750055,0.0011,1977.0,1976.6,0.47987383]
[1771307751135,0.0011,1977.0,1976.7,1.74460798]
[1771307751755,0.0011,1977.0,1976.7,0.47987383]
[1771307756466,0.0011,1977.0,1976.7,1.74459956]
[1771307758673,0.0011,1976.9,1976.7,1.74459956]
[1771307760472,0.0011,1976.9,1976.7,0.47987383]
[1771307761477,0.0011,1976.9,1976.6,2.06075522]
[1771307761985,0.48626936,1976.9,1976.6,0.796]
[1771307763174,0.48626936,1976.9,1976.6,0.001]
[1771307767281,0.48516936,1976.8,1976.6,0.001]
[1771307769659,1.74984969,1976.8,1976.6,0.001]
[1771307769986,1.74984969,1976.8,1976.3,0.798]
[1771307769987,0.48516936,1976.7,1976.3,0.798]
[1771307770763,0.48516936,1976.7,1976.3,0.001]
[1771307770968,0.48516936,1976.7,1976.6,0.001]
[1771307771877,1.26581705,1976.8,1976.6,0.001]
[1771307772189,1.75098641,1976.8,1976.6,0.001]
[1771307773510,0.48626936,1976.8,1976.6,0.001]
[1771307774299,1.75094543,1976.8,1976.6,0.001]
[1771307774666,0.48494057,1976.7,1976.6,0.001]
[1771307774874,0.0011,1976.8,1976.6,0.001]
[1771307775307,0.48604057,1976.8,1976.6,0.001]
[1771307776134,0.0011,1976.8,1976.6,0.001]
[1771307782886,0.0011,1976.8,1976.6,0.49514045]
[1771307783395,0.0011,1976.8,1976.7,0.001]
[1771307784087,0.0011,1976.8,1976.7,0.49514045]
[1771307786785,0.0011,1976.8,1976.7,1.7598746]
[1771307787084,0.0011,1976.8,1976.7,0.49514045]
[1771307787335,0.0011,1976.8,1976.7,1.7598746]
[1771307788502,0.0011,1976.8,1976.7,0.49514045]
[1771307789102,0.0011,1976.8,1976.7,0.001]
[1771307794018,0.0011,1976.8,1976.7,0.49514045]
[1771307795521,0.0011,1976.8,1976.7,1.26573415]
[1771307795695,0.0011,1976.8,1976.7,1.7598746]
[1771307796107,0.0011,1976.8,1976.7,2.5608746]
[1771307796515,0.0011,1976.9,1976.8,0.49414045]
[1771307796822,0.0011,1977.1,1976.8,0.49414045]
[1771307797401,0.0011,1977.1,1976.9,1.2646062]
[1771307798408,0.0011,1977.1,1976.9,1.75874665]
[1771307799596,0.0011,1977.4,1977.1,0.49414045]
[1771307799800,0.0011,1977.4,1977.0,0.803]
[1771307800222,0.0011,1977.4,1977.0,1.29714045]
[1771307802701,0.0011,1977.4,1977.1,1.26447827]
[1771307807369,0.0011,1977.6,1977.2,0.46595197]
[1771307807543,0.0011,1977.7,1977.4,0.46595197]
[1771307809101,0.0011,1977.8,1977.4,5.48103906]
[1771307809302,0.0011,1977.9,1977.7,1.26409465]
[1771307809814,0.0011,1977.9,1977.7,1.7538682]
[1771307811435,5.97190409,1978.4,1977.7,1.26409465]
[1771307811728,0.49086503,1978.3,1977.7,1.26409465]
[1771307812702,0.49086503,1978.4,1977.8,0.48977355]
[1771307812903,0.49086503,1978.4,1977.9,0.811]
[1771307813934,0.49086503,1978.4,1977.9,2.07495927]
[1771307814842,1.26355742,1978.6,1977.9,2.56473282]
[1771307815009,0.49086503,1978.5,1977.9,2.56473282]
[1771307817642,0.49086503,1978.7,1978.0,0.48977355]
[1771307818733,0.49086503,1978.7,1977.9,2.07495927]
[1771307818734,0.49086503,1978.6,1977.9,0.811]
[1771307819245,0.49086503,1978.4,1977.9,0.811]
[1771307819544,0.49086503,1978.4,1977.9,2.0749614]
[1771307820312,0.49086503,1978.6,1977.9,2.56473495]
[1771307821436,0.0011,1978.4,1977.9,2.56473495]
[1771307824880,0.0011,1978.4,1978.0,0.48977355]
[1771307825340,0.0011,1978.4,1978.1,1.26383903]
[1771307825837,0.0011,1978.4,1978.0,1.75362582]
[1771307826143,0.0011,1978.4,1977.9,2.07492085]
[1771307826738,0.0011,1978.4,1977.9,2.5646944]
[1771307833432,0.0011,1978.4,1978.0,0.48977355]
[1771307833661,0.0011,1978.7,1978.1,0.48977355]
[1771307834363,0.0011,1978.7,1978.4,1.7381375]
[1771307834551,0.0011,1978.7,1978.5,0.47449011]
[1771307835538,0.0011,1978.6,1978.5,0.47449011]
[1771307835740,0.45372399,1979.1,1978.5,0.47449011]
[1771307836186,1.71666917,1979.5,1978.7,0.47449011]
[1771307836353,0.45372399,1979.4,1978.8,0.817]
[1771307836554,0.45372399,1979.3,1978.8,0.817]
[1771307837556,1.26297948,1979.5,1978.8,2.5548762]
[1771307837770,0.45372399,1979.4,1978.8,2.08038609]
[1771307838159,1.71663882,1979.6,1978.9,0.47449011]
[1771307838364,0.45372399,1979.5,1978.9,0.47449011]
[1771307839082,0.45372399,1979.5,1979.0,1.26326427]
[1771307840179,0.45372399,1979.5,1978.9,1.26328583]
[1771307842083,0.45372399,1979.5,1978.9,1.73777594]
[1771307844358,0.45372399,1979.4,1978.9,1.26328583]
[1771307845492,0.45372399,1979.7,1979.0,0.47449011]
[1771307845672,0.45372399,1979.5,1978.8,0.817]
[1771307845875,0.45372399,1979.4,1978.8,0.817]
[1771307846886,5.47411681,1979.3,1978.8,0.817]
[1771307847097,0.45372399,1979.2,1978.4,1.73808975]
[1771307847274,0.45372399,1979.2,1978.5,0.817]
[1771307847789,0.45372399,1979.2,1978.8,0.001]
[1771307848096,0.45372399,1979.0,1978.8,0.001]
[1771307848972,0.45372399,1979.0,1978.5,0.001]
[1771307851092,0.45372399,1978.9,1978.5,0.001]
[1771307851297,0.45372399,1978.8,1978.5,0.001]
[1771307851981,0.45372399,1979.0,1978.5,0.001]
[1771307853062,0.45372399,1978.8,1978.5,0.001]
[1771307855590,1.71717398,1978.8,1978.5,0.001]
[1771307856969,0.45372399,1978.7,1978.5,0.001]
[1771307858297,1.26344999,1978.8,1978.5,0.001]
[1771307858596,1.71717398,1978.8,1978.5,0.001]
[1771307860291,1.71717398,1978.8,1978.6,0.001]
[1771307864802,1.26344999,1978.8,1978.6,0.001]
[1771307868103,1.72989662,1978.8,1978.6,0.001]
[1771307868496,1.26324284,1979.1,1978.6,0.001]
[1771307868804,2.04624284,1979.1,1978.6,0.49966256]
[1771307869377,1.26324284,1979.1,1978.6,0.49966256]
[1771307869691,1.72968947,1979.1,1978.6,0.001]
[1771307869891,0.46644663,1979.0,1978.6,0.001]
[1771307870501,1.26332811,1978.9,1978.6,0.001]
[1771307870873,1.72976011,1979.0,1978.6,0.001]
[1771307871400,0.4759103,1978.9,1978.6,0.001]
[1771307872006,1.2609103,1978.9,1978.6,0.001]
[1771307872604,1.26339195,1978.8,1978.6,0.001]
[1771307873001,1.26337278,1978.9,1978.6,0.001]
[1771307873676,1.26447278,1978.9,1978.6,0.001]
[1771307874599,0.0011,1978.9,1978.6,0.001]
[1771307876802,0.0011,1978.9,1978.6,0.46268537]
[1771307877606,0.0011,1978.9,1978.6,0.001]
[1771307882516,0.4770103,1978.9,1978.6,0.001]
[1771307884212,1.26339195,1978.8,1978.6,0.001]
[1771307886039,1.2644441,1978.9,1978.6,0.001]
[1771307886337,0.0011,1978.9,1978.6,0.001]
[1771307886813,0.0011,1978.9,1978.7,0.001]
[1771307887012,0.0011,1978.9,1978.7,9.019e-05]
[1771307887516,0.4770103,1978.9,1978.6,0.001]
[1771307892409,1.26339195,1978.8,1978.6,0.001]
[1771307893009,1.26339195,1978.8,1978.6,9.027e-05]
[1771307893615,1.26339195,1978.8,1978.4,0.001]
[1771307893616,0.4759103,1978.7,1978.4,0.001]
[1771307894197,1.2634593,1978.7,1978.4,0.001]
[1771307894418,0.799,1978.8,1978.4,0.001]
[1771307894722,2.06239458,1978.8,1978.4,0.001]
[1771307895221,1.26339458,1978.8,1978.4,0.001]
[1771307896121,1.26339458,1978.8,1978.4,0.48921447]
[1771307897913,1.73500132,1978.8,1978.4,0.001]
[1771307898295,1.26339458,1978.8,1978.4,0.001]
[1771307899705,1.26339458,1978.8,1978.5,0.001]
[1771307900024,0.0011,1978.7,1978.5,9.038e-05]
[1771307904323,0.47270674,1978.7,1978.4,0.001]
[1771307904638,0.47270674,1978.7,1978.3,0.001]
[1771307905012,1.26351966,1978.6,1978.3,0.001]
[1771307907325,5.05496042,1978.7,1978.3,0.001]
[1771307908111,1.2645558,1978.7,1978.3,0.001]
[1771307909125,0.0011,1978.7,1978.3,0.48921447]
[1771307909452,0.0011,1978.7,1978.3,0.001]
[1771307912316,0.0011,1978.7,1978.4,0.001]
[1771307912635,0.0011,1978.6,1978.4,0.001]
[1771307913447,0.0011,1978.6,1978.4,0.48921447]
[1771307915045,0.0011,1978.6,1978.4,0.001]
[1771307915718,0.47160674,1978.4,1978.1,0.001]
[1771307915919,0.47160674,1978.4,1978.0,0.001]
[1771307916750,5.47097604,1978.1,1977.8,1.718]
[1771307916919,0.47160674,1978.2,1977.7,0.001]
[1771307917857,1.26383903,1978.1,1977.7,0.001]
[1771307919673,0.47160674,1978.0,1977.5,0.001]